{"text_format":"1","workbook":"xlsx","n_sheets":12,"sheets":["Summary of scores (2)","Introduction","Instructions","Foire aux questions","Lignes directrices pour la PaE","Gestion de programme","Mise en œuvre de programme","Résultats de programme ","Résumé des notes","Étapes suivantes","Bibliographie","Acronymes"],"not_rendered":{"charts":6,"images":1,"macros":1,"external_links":0,"defined_names":28,"comments":1,"pivot_tables":0},"unopened":[],"bounds":{"document_bytes":16777216,"sheet_cells":100000,"rows_first":2000,"rows_last":500,"rows_between":2000,"halvings":0,"cell_chars":16384,"cell_head_chars":4096},"cells_cut":0,"cells_raw":0,"read":"whole","date_system":"1900"}

{"sheet":"Summary of scores (2)","index":0,"n_rows":142,"n_cols":6,"rows_kept":142,"cut":false,"hidden":true,"merged":[[109,2,141,2],[109,3,136,3],[137,3,141,3],[1,2,1,6],[68,2,74,2],[68,3,71,3],[72,3,73,3],[76,2,108,2],[93,3,97,3],[99,3,100,3],[101,3,108,3],[76,3,79,3],[80,3,82,3],[83,3,86,3],[87,3,89,3],[90,3,92,3],[74,3,75,3],[2,2,67,2],[2,3,23,3],[24,3,45,3],[46,3,67,3]]}
[]
[null,null,"Summary of scores"]
[null,null,"Prevention\nPackages","AGYW Prevention Package\n(HIGH Incidence Locations)",null,"Risk Assessment / Profiling"]
[null,null,null,null,null,"Male and female condoms and lubricants "]
[null,null,null,null,null,"HIV testing, treatment, counselling and support"]
[null,null,null,null,null,"Pre-exposure Prophylaxis"]
[null,null,null,null,null,"STI diagnosis & service integration"]
[null,null,null,null,null,"SRH services incl. contraceptive mix"]
[null,null,null,null,null,"GBV services, post-rape care "]
[null,null,null,null,null,"Antenatal care (ANC) including PMTCT"]
[null,null,null,null,null,"Clinical service package for sex partners of AGYW"]
[null,null,null,null,null,"Accessible services"]
[null,null,null,null,null,"Youth-friendly/Acceptable services"]
[null,null,null,null,null,"Sensitisation"]
[null,null,null,null,null,"School-based prevention campaigns"]
[null,null,null,null,null,"Comprehensive sexuality education"]
[null,null,null,null,null,"Keeping girls in school"]
[null,null,null,null,null,"Community Mobilisation & demand generation"]
[null,null,null,null,null,"Increasing access to justice (policy and legal) "]
[null,null,null,null,null,"Gender-based violence prevention and management "]
[null,null,null,null,null,"Social protection & Social Asset Building"]
[null,null,null,null,null,"Economic Empowerment & Incentives"]
[null,null,null,null,null,"Increasing access to education for young women "]
[null,null,null,null,null,"Transforming harmful cultural and gender norms through community platforms"]
[null,null,null,"AGYW Prevention Package\n(VERY HIGH Incidence Locations)",null,"Risk Assessment / Profiling"]
[null,null,null,null,null,"Male and female condoms and lubricants "]
[null,null,null,null,null,"HIV testing, treatment, counselling and support"]
[null,null,null,null,null,"Pre-exposure Prophylaxis"]
[null,null,null,null,null,"STI diagnosis & service integration"]
[null,null,null,null,null,"SRH services incl. contraceptive mix"]
[null,null,null,null,null,"GBV services, post-rape care "]
[null,null,null,null,null,"Antenatal care (ANC) including PMTCT"]
[null,null,null,null,null,"Clinical service package for sex partners of AGYW"]
[null,null,null,null,null,"Accessible services"]
[null,null,null,null,null,"Youth-friendly/Acceptable services"]
[null,null,null,null,null,"Sensitisation"]
[null,null,null,null,null,"School-based prevention campaigns"]
[null,null,null,null,null,"Comprehensive sexuality education"]
[null,null,null,null,null,"Keeping girls in school"]
[null,null,null,null,null,"Community Mobilisation & demand generation"]
[null,null,null,null,null,"Increasing access to justice (policy and legal) "]
[null,null,null,null,null,"Gender-based violence prevention and management "]
[null,null,null,null,null,"Social protection & Social Asset Building"]
[null,null,null,null,null,"Economic Empowerment & Incentives"]
[null,null,null,null,null,"Increasing access to education for young women "]
[null,null,null,null,null,"Transforming harmful cultural and gender norms through community platforms"]
[null,null,null,"AGYW Prevention Package\n(EXTREMELY HIGH Incidence Locations)",null,"Risk Assessment / Profiling"]
[null,null,null,null,null,"Male and female condoms and lubricants "]
[null,null,null,null,null,"HIV testing, treatment, counselling and support"]
[null,null,null,null,null,"Pre-exposure Prophylaxis"]
[null,null,null,null,null,"STI diagnosis & service integration"]
[null,null,null,null,null,"SRH services incl. contraceptive mix"]
[null,null,null,null,null,"GBV services, post-rape care "]
[null,null,null,null,null,"Antenatal care (ANC) including PMTCT"]
[null,null,null,null,null,"Clinical service package for sex partners of AGYW"]
[null,null,null,null,null,"Accessible services"]
[null,null,null,null,null,"Youth-friendly/Acceptable services"]
[null,null,null,null,null,"Sensitisation"]
[null,null,null,null,null,"School-based prevention campaigns"]
[null,null,null,null,null,"Comprehensive sexuality education"]
[null,null,null,null,null,"Keeping girls in school"]
[null,null,null,null,null,"Community Mobilisation & demand generation"]
[null,null,null,null,null,"Increasing access to justice (policy and legal) "]
[null,null,null,null,null,"Gender-based violence prevention and management "]
[null,null,null,null,null,"Social protection & Social Asset Building"]
[null,null,null,null,null,"Economic Empowerment & Incentives"]
[null,null,null,null,null,"Increasing access to education for young women "]
[null,null,null,null,null,"Transforming harmful cultural and gender norms through community platforms"]
[null,null,"Programme Management","1. Leadership & coordination",null,"National Strategy and Strategic Plan"]
[null,null,null,null,null,"National Technical working group (TWG) for AGYW/Youth Prevention"]
[null,null,null,null,null,"Accountability"]
[null,null,null,null,null,"National and Sub-National plans"]
[null,null,null,"2. Strategy, Policy & regulation",null,"Policies"]
[null,null,null,null,null,"Guidelines"]
[null,null,null,"3. Financing",null,"Costing"]
[null,null,null,null,null,"Budget planning"]
[null,null,"Programme Implementation","4. Step One: Targeting & planning",null,"Demographic assessment & disaggregation"]
[null,null,null,null,null,"Needs assessment"]
[null,null,null,null,null,"Characterisation of male partners of AGYW"]
[null,null,null,null,null,"Target setting"]
[null,null,null,"5. Step Two: Population size estimation by HIV Incidence Level",null,"AGYW PSE - high incidence settings"]
[null,null,null,null,null,"AGYW PSE - very high incidence settings"]
[null,null,null,null,null,"AGYW PSE - extremely incidence settings"]
[null,null,null,"6. Step Three: Identify the groups \"most vulnerable\" or \"most in need\"",null,"Epidemiological assessment (sero-prevalence survey & determinants of risk)"]
[null,null,null,null,null,"Behavoural risk factors"]
[null,null,null,null,null,"Biological risk factors"]
[null,null,null,null,null,"Structural risk factors"]
[null,null,null,"7. Step Four: Review available programme elements and their coverage",null,"Health sector platforms (facilities, service delivery points)"]
[null,null,null,null,null,"Education platforms (schools, universities)"]
[null,null,null,null,null,"Community platforms (NGOs, CSOs)"]
[null,null,null,"8. Step Five: Develop a Results Framework (Theory of Change)",null,"Define & prioritise HIV prevention packages per applicable incidence category"]
[null,null,null,null,null,"Include Programmatic coverage targets"]
[null,null,null,null,null,"Include Cross-cutting activities & complementary action"]
[null,null,null,"9. Step Six: Define/Develop Delivery Systems",null,"Develop/ensure health platforms"]
[null,null,null,null,null,"Develop/ensure education platforms"]
[null,null,null,null,null,"Develop/ensure Community platforms"]
[null,null,null,null,null,"Peer outreach educators (POE), Peer testers and Community Health Workers (CHWs)"]
[null,null,null,null,null,"Meaningful engagement of affected communities in leadership & coordination"]
[null,null,null,"10. Step Seven: Define Management Mechanism",null,"National & Sub National Management systems"]
[null,null,null,"11. Step Eight: Develop Costed Operational Plan",null,"Operational plan"]
[null,null,null,null,null,"Available Resources"]
[null,null,null,"12. Step Nine: Develop M&E Plan",null,"Routine monitoring"]
[null,null,null,null,null,"Referral system tracking"]
[null,null,null,null,null,"Quality assessment"]
[null,null,null,null,null,"Surveillance "]
[null,null,null,null,null,"Data flow"]
[null,null,null,null,null,"Data for decision making"]
[null,null,null,null,null,"The use of Unique Identifier Code for program monitoring"]
[null,null,null,null,null,"Budget monitoring"]
[null,null,"Programme Outcomes","13. Outcomes for AGYW Prevention",null,"Number of new HIV infections per 1000 uninfected population"]
[null,null,null,null,null,"Number and % of people living with HIV "]
[null,null,null,null,null,"Number of AIDS related deaths per 100,000 population"]
[null,null,null,null,null,"Percentage of (estimated) people living with HIV who have been tested HIV-positive"]
[null,null,null,null,null,"Percentage of adults and children with HIV, known to be on treatment 12 months after initiation of antiretroviral therapy"]
[null,null,null,null,null,"Percentage of people living with HIV and on ART who are virologically suppressed"]
[null,null,null,null,null,"Percentage of ever-married or partnered women aged 15-49 who experienced physical or sexual violence from a male intimate partner in the past 12 months"]
[null,null,null,null,null,"Percentage of sexually active young women age 15 - 24 who had multiple sexual partners."]
[null,null,null,null,null,"Percentage of sexually active men age 15-49 who had multiple sexual partners."]
[null,null,null,null,null,"Knows a formal source for condoms (young women 15-24)"]
[null,null,null,null,null,"Knows a formal source for condoms (young men 15-24)"]
[null,null,null,null,null,"Condom use with non-regular partners (young women, 15-24)"]
[null,null,null,null,null,"Condom use with non regular partners (young men, 15-24)"]
[null,null,null,null,null,"Percentage of females age 15-24 who report unintended pregnancy of of current pregnancy or most recent births (teen pregnancy)"]
[null,null,null,null,null,"Percentage of youth neither in employment nor in education or training (NEET)"]
[null,null,null,null,null,"Percentage of females aged 15 - 24 who dropped out of school in the last year"]
[null,null,null,null,null,"Percentage of young people aged 10–24 years reached by life skills–based HIV education in schools"]
[null,null,null,null,null,"Percentage of priority districts (administrative areas) with dedicated programs for young women & male partners (full package) "]
[null,null,null,null,null,"Percentage of adolescent girls and young women in high-HIV incidence communities reached with two interventions in the past three months"]
[null,null,null,null,null,"Percentage of adolescent girls and young women (AGYW) who received PEP"]
[null,null,null,null,null,"PrEP Indicator - tbc"]
[null,null,null,null,null,"SRHR access indicator(s) - tbc"]
[null,null,null,null,null,"Number of AGYW who received GBV related services (e.g. referral for legal or medical care e.g. PEP, post violence care & support services)"]
[null,null,null,null,null,"Percentage of AGYW who received livelihood support (cash transfer or other economic empowerment approaches)"]
[null,null,null,null,null,"Percentage of AGYW who reached with \"keeping girls in school\" initiatives (including education subsidy and others)"]
[null,null,null,null,null,"Number of medical male circumcisions performed according to national standards"]
[null,null,null,null,null,"Percentage of people living with HIV that initiated ART with a CD4 count of <200 cells/mm3"]
[null,null,null,null,null,"Percentage of people living with HIV and on antiretroviral therapy who have a suppressed viral load at 12 months (<1000 copies/ml)"]
[null,null,null,"14. Sustainability",null,"Resource mobilisation and financing"]
[null,null,null,null,null,"Domestic resourcing"]
[null,null,null,null,null,"Social contracting"]
[null,null,null,null,null,"Capacity building and TA Plan"]
[null,null,null,null,null,"Sustainability plan and transition roadmap"]

{"sheet":"Introduction","index":1,"n_rows":2,"n_cols":3,"rows_kept":2,"cut":false,"hidden":false,"merged":[[1,2,1,22]]}
[]
[null,null,"Que sont les Outils d’auto-évaluation pour la prévention du VIH (OAEP) ?"]

{"sheet":"Instructions","index":2,"n_rows":57,"n_cols":19,"rows_kept":57,"cut":false,"hidden":false,"merged":[[2,2,2,17]]}
[]
[]
[null,null,"Comment compléter l’outil d’auto-évaluation pour la prévention (OAEP) ?"]
[]
[]
[]
[]
[]
[]
[]
[]
[]
[]
[]
[]
[]
[]
[]
[]
[]
[]
[]
[]
[]
[]
[]
[]
[]
[]
[]
[]
[]
[]
[]
[]
[]
[]
[]
[]
[]
[]
[]
[]
[]
[]
[]
[]
[]
[]
[]
[]
[]
[]
[]
[]
[]
[null,null,null,null,null,null,null,null,null,null,null,null,null,null,null,null,null,null,"I"]

{"sheet":"Foire aux questions","index":3,"n_rows":2,"n_cols":3,"rows_kept":2,"cut":false,"hidden":false,"merged":[[1,2,1,22]]}
[]
[null,null,"Foire aux questions"]

{"sheet":"Lignes directrices pour la PaE","index":4,"n_rows":2,"n_cols":3,"rows_kept":2,"cut":false,"hidden":false,"merged":[[1,2,1,22]]}
[]
[null,null,"Offre de prophylaxie avant exposition"]

{"sheet":"Gestion de programme","index":5,"n_rows":48,"n_cols":16,"rows_kept":48,"cut":false,"hidden":false,"merged":[[20,2,22,2],[34,2,42,2],[20,9,22,9],[24,9,26,9],[27,9,32,9],[34,9,42,9],[24,2,26,2],[27,2,32,2],[1,2,1,9],[3,3,3,4],[6,9,10,9],[11,9,19,9],[5,2,10,2],[11,2,19,2]]}
[]
[null,null,"Gestion de programme"]
[]
[null,null,"Élément","Critères",null,"S/O","Absent","Présent mais non optimal","Présent et fonctionnel","Moyenne de l’élément","Commentaires\n(le cas échéant)","Absent","Present","Optimal","Average","Sustainability Single Figure"]
[null,null,"Stratégie, politique et réglementation"]
[null,null,"Stratégie nationale de prévention          du VIH","○","La PaE en composante de la prévention globale du VIH dans la stratégie nationale de lutte contre le VIH",null,null,null,null,null,null,{"$f":"IF(ISBLANK(G6),0,1)","v":0},{"$f":"IF(ISBLANK(H6),0,3)","v":0},{"$f":"IF(ISBLANK(I6),0,5)","v":0},{"$f":"IFERROR(ROUND(AVERAGEIF(L6:N11,\"<>0\",L6:N11),0),\"-\")","v":"-"}]
[null,null,null,"○","La PaE orale et la PaE à action prolongée (à savoir l’AVD et les préparations injectables) constituent une composante de la prévention globale du VIH dans la stratégie nationale de lutte contre le VIH",null,null,null,null,{"$f":"IFERROR(O6,\"-\")","v":"-"},null,{"$f":"IF(ISBLANK(G7),0,1)","v":0},{"$f":"IF(ISBLANK(H7),0,3)","v":0},{"$f":"IF(ISBLANK(I7),0,5)","v":0}]
[null,null,null,"○","Suffisamment détaillée pour guider la mise en œuvre des programmes de PaE",null,null,null,null,null,null,0,0,0]
[null,null,null,"○","Vision du déploiement de la PaE basée sur les lignes directrices de l’OMS ou sur l’expérience du pays",null,null,null,null,null,null,0,0,0]
[null,null,null,"○","Programme de PaE intégré au système de santé ordinaire",null,null,null,null,null,null,0,0,0,null,{"$f":"IF(MAX(L10:N10)=0,\"\",MAX(L10:N10))","v":""}]
[null,null,null,"○","La PaE est à la disposition de toutes les personnes présentant un risque important",null,null,null,null,null,null,0,0,0]
[null,null,"Directives cliniques nationales","○","Des directives cliniques nationales sur la PaE sont en place OU des lignes directrices sur la PaE figurent dans les directives nationales sur la PaE ",null,null,null,null,{"$f":"IFERROR(O12,\"-\")","v":"-"},null,0,0,0,{"$f":"IFERROR(ROUND(AVERAGEIF(L12:N20,\"<>0\",L12:N20),0),\"-\")","v":"-"}]
[null,null,null,"○","Elles sont suffisamment détaillées pour orienter les prestataires de la PaE dans un ou plusieurs des domaines suivants : sélection et initiation de l’éligibilité, tests de laboratoire, calendrier de suivi, conseil",null,null,null,null,null,null,0,0,0]
[null,null,null,"○","Les directives ont été approuvées ou acceptées par les associations de prestataires",null,null,null,null,null,null,0,0,0]
[null,null,null,"○","Les directives comprennent des lignes directrices sur les personnes qui peuvent dispenser la PaE et sur la formation requise",null,null,null,null,null,null,0,0,0]
[null,null,null,"○","Directives informées par les lignes directrices de l’OMS et l’expérience du pays ",null,null,null,null,null,null,0,0,0]
[null,null,null,"○","Applicables et disponibles pour tous les prestataires de PaE (publics et privés)",null,null,null,null,null,null,0,0,0]
[null,null,null,"○","Les directives incluent la promotion du suivi clinique des personnes qui achètent la PaE en ligne",null,null,null,null,null,null,0,0,0]
[null,null,null,"○","Les directives couvrent la PaE orale quotidienne, la PaE événementielle et les méthodes de PaE à action prolongée (AVD, préparations injectables)",null,null,null,null,null,null,0,0,0]
[null,null,null,"○","Des mesures de prévention et de contrôle de l’infection COVID-19 sont intégrées à l’ensemble des stratégies, plans et directives de prévention du VIH et de PaE",null,null,null,null,null,null,0,0,0]
[null,null,"Statut réglementaire des médicaments associés à la PaE","○","L’agrément réglementaire de plus d’un produit (y compris les TAR génériques) pour un usage préventif a été obtenu OU des dérogations sont en place",null,null,null,null,{"$f":"IFERROR(O21,\"-\")","v":"-"},null,0,0,0,{"$f":"IFERROR(ROUND(AVERAGEIF(L21:N23,\"<>0\",L21:N23),0),\"-\")","v":"-"}]
[null,null,null,"○","Un appel d’offres concurrentiel entre les produits agréés a été émis",null,null,null,null,null,null,0,0,0]
[null,null,null,"○","Les modalités de la PaE sont incluses dans la liste des médicaments essentiels (LME)",null,null,null,null,null,null,0,0,0]
[null,null,"Leadership et coordination",null,null,null,null,null,null,{"$f":"IFERROR(O25,\"-\")","v":"-"}]
[null,null,"Leadership et obligation de rendre compte","○","Le responsable de la PaE jouit d’un leadership et de pouvoirs importants au sein du gouvernement national",null,null,null,null,{"$f":"IFERROR(O25,\"-\")","v":"-"},null,0,0,0,{"$f":"IFERROR(ROUND(AVERAGEIF(L25:N27,\"<>0\",L25:N27),0),\"-\")","v":"-"}]
[null,null,null,"○","Le responsable de la PaE assure la direction et la supervision de la mise en œuvre et du suivi du programme national de PaE",null,null,null,null,null,null,0,0,0]
[null,null,null,"○","Les responsables de la mise en œuvre financés par les donateurs rendent régulièrement compte au responsable gouvernemental de la PaE",null,null,null,null,null,null,0,0,0]
[null,null,"Engagement des parties prenantes","○","Tous les acteurs impliqués dans la mise en œuvre de la PaE ont des rôles et des responsabilités clairement définis",null,null,null,null,{"$f":"IFERROR(O28,\"-\")","v":"-"},null,0,0,0,{"$f":"IFERROR(ROUND(AVERAGEIF(L28:N33,\"<>0\",L28:N33),0),\"-\")","v":"-"}]
[null,null,null,"○","La société civile est impliquée dans les décisions clés",null,null,null,null,null,null,0,0,0]
[null,null,null,"○","Les utilisateurs finaux de la PaE sont impliqués dans les décisions clés, avec participation explicite des membres des groupes de PC concernés (ex. : HSH, TS, jeunes)",null,null,null,null,null,null,0,0,0]
[null,null,null,"○","Un groupe de travail technique doté d’un mandat précis assure la coordination au niveau national",null,null,null,null,null,null,0,0,0]
[null,null,null,"○","Le GTT comprend des représentants des conseils nationaux de lutte contre le sida, des fabricants de médicaments, du conseil de réglementation des médicaments, des associations professionnelles (ex : ordre des médecins), des responsables locaux de la mise en œuvre (ex. : départements de santé infranationaux), des donateurs, des organisations internationales et de la société civile",null,null,null,null,null,null,0,0,0]
[null,null,null,"○","Une coordination multisectorielle avec d’autres ministères/départements (ex. : finances, application de la loi, éducation, développement, etc.) a lieu",null,null,null,null,null,null,0,0,0]
[null,null,"Financement",null,null,null,null,null,null,null,null,0,0,0]
[null,null,"Budget","○","Budget national en place pour la PaE",null,null,null,null,{"$f":"IFERROR(O35,\"-\")","v":"-"},null,0,0,0,{"$f":"IFERROR(ROUND(AVERAGEIF(L35:N43,\"<>0\",L35:N43),0),\"-\")","v":"-"}]
[null,null,null,"○","Un exercice d’évaluation des coûts a été effectué, qui permet d’estimer de manière réaliste le budget pour toutes les composantes du paquet de PaE (modalités de la PaE – médicament, anneau, injection –, tests de laboratoire, ressources humaines, stratégie de communication, système de suivi et d’évaluation, etc.) ",null,null,null,null,null,null,0,0,0]
[null,null,null,"○","Budget de la PaE (y compris le dépistage, la communication, la formation) intégré au budget global de l’activité concernée",null,null,null,null,null,null,0,0,0]
[null,null,null,"○","Le financement national est disponible et alloué pour une proportion pertinente du programme et les donateurs s’engagent à combler les lacunes, le cas échéant",null,null,null,null,null,null,0,0,0]
[null,null,null,"○","Les organismes / partenaires de financement sont coordonnés",null,null,null,null,null,null,0,0,0]
[null,null,null,"○","Des budgets sont en place au niveau infranational ",null,null,null,null,null,null,0,0,0]
[null,null,null,"○","Les écarts budgétaires sont identifiés et des plans ont été mis en place pour combler ces écarts",null,null,null,null,null,null,0,0,0]
[null,null,null,"○","Une proportion pertinente du programme de PaE est financée au niveau national (minimum >10 %)",null,null,null,null,null,null,0,0,0,null,{"$f":"IF(MAX(L42:N42)=0,\"\",MAX(L42:N42))","v":""}]
[null,null,null,"○","Mise en place d’une politique permettant au programme de PaE d’être financé de manière continue au niveau national",null,null,null,null,null,null,0,0,0,null,{"$f":"IF(MAX(L43:N43)=0,\"\",MAX(L43:N43))","v":""}]
[]
[]
[null,null,null,null,null,null,null,null,null,null,null,null,{"$f":"COUNTIF(O6:O43,\"-\")","v":6}]
[null,null,null,null,null,null,null,null,null,null,null,null,{"$f":"COUNTIF(O6:O43,\">0\")","v":0}]
[null,null,null,null,null,null,null,null,null,null,null,"Sheet Completion",{"$f":"M47/(M46+M47)","v":0},{"$f":"1-M48","v":1}]

{"sheet":"Mise en œuvre de programme","index":6,"n_rows":157,"n_cols":16,"rows_kept":157,"cut":false,"hidden":false,"merged":[[26,2,33,2],[35,2,38,2],[39,2,43,2],[44,2,51,2],[53,2,56,2],[100,2,109,2],[110,2,115,2],[116,2,117,2],[119,2,127,2],[1,2,1,7],[67,2,69,2],[71,2,76,2],[77,2,79,2],[80,2,90,2],[4,2,4,9],[34,2,34,9],[52,2,52,9],[70,2,70,9],[5,2,11,2],[12,2,16,2],[77,9,79,9],[57,9,62,9],[63,9,66,9],[67,9,69,9],[71,9,76,9],[91,2,99,2],[57,2,62,2],[63,2,66,2],[6,9,11,9],[12,9,16,9],[17,9,25,9],[26,9,33,9],[35,9,38,9],[119,9,127,9],[128,9,138,9],[139,9,144,9],[145,9,152,9],[17,2,25,2],[80,9,90,9],[91,9,99,9],[100,9,109,9],[110,9,115,9],[116,9,117,9],[139,2,144,2],[145,2,152,2],[128,2,138,2],[39,9,43,9],[44,9,51,9],[53,9,56,9]]}
[]
[]
[]
[null,null,"Élément","Critères",null,"S/O","Absent","Présent mais non optimal","Présent et fonctionnel","Moyenne de l’élément","Commentaires (le cas échéant)","Absent","Present","Optimal","Average","Sustainability Single Figure"]
[null,null,"Ciblage et planification"]
[null,null,"Plans de travail pour la mise en œuvre",null,"Politique et plans de travail",null,null,null,null,null,null,null,null,null,{"$f":"IFERROR(ROUND(AVERAGEIF(L7:N12,\"<>0\",L7:N12),0),\"-\")","v":"-"}]
[null,null,null,"○","Des plans de travail aux niveaux national et sous-national sont en place",null,null,null,null,{"$f":"IFERROR(O6,\"-\")","v":"-"},null,{"$f":"IF(ISBLANK(G7),0,1)","v":0},{"$f":"IF(ISBLANK(H7),0,3)","v":0},{"$f":"IF(ISBLANK(I7),0,5)","v":0}]
[null,null,null,"○","Les populations cibles sont impliquées dans l’élaboration des plans de travail",null,null,null,null,null,null,{"$f":"IF(ISBLANK(G8),0,1)","v":0},{"$f":"IF(ISBLANK(H8),0,3)","v":0},{"$f":"IF(ISBLANK(I8),0,5)","v":0}]
[null,null,null,"○","Il existe une délégation claire des responsabilités et des lignes hiérarchiques",null,null,null,null,null,null,0,0,0]
[null,null,null,"○","Des calendriers et des mécanismes de rapport sont en place",null,null,null,null,null,null,0,0,0]
[null,null,null,"○","Des mécanismes d’examen et de suivi sont en place",null,null,null,null,null,null,0,0,0]
[null,null,null,"○","Les actions et éléments du programme sont clairement corrélés aux lignes budgétaires",null,null,null,null,null,null,0,0,0]
[null,null,"Évaluation de la population à risque","○","Les populations prioritaires sont déterminées par le profil épidémique du VIH, l’incidence et la prévalence du VIH et la distribution géographique du risque",null,null,null,null,{"$f":"IFERROR(O13,\"-\")","v":"-"},null,0,0,0,{"$f":"IFERROR(ROUND(AVERAGEIF(L13:N17,\"<>0\",L13:N17),0),\"-\")","v":"-"}]
[null,null,null,"○","Implication de membres de groupes prioritaires et de groupes de population clés dans l’évaluation des populations à risque",null,null,null,null,null,null,0,0,0]
[null,null,null,"○","L’évaluation du lieu et du mode de mise à l’échelle du déploiement est pratiquée à l’aide d’outils disponibles dans le monde entier (ex. : OPTIONS Plan4PrEP Toolkit, PrEP-It, WHO Implementation Toolkit for PrEP)",null,null,null,null,null,null,0,0,0]
[null,null,null,"○","L’approche est non stigmatisante -– les documents destinés au public évoquent des comportements à haut risque sans nommer de populations clés",null,null,null,null,null,null,0,0,0]
[null,null,null,"○","Au niveau infranational, les données sont ventilées par sexe, population clé et âge (avec des tranches d’âge plus petites pour les populations plus jeunes, à savoir 15-19 ans, 20-24 ans, 25-29 ans, etc.)",null,null,null,null,null,null,0,0,0]
[null,null," Cibles des indicateurs","○","Des cibles pour les indicateurs de résultats du programme ont été fixées aux niveaux national et infranational",null,null,null,null,{"$f":"IFERROR(O18,\"-\")","v":"-"},null,0,0,0,{"$f":"IFERROR(ROUND(AVERAGEIF(L18:N26,\"<>0\",L18:N26),0),\"-\")","v":"-"}]
[null,null,null,"○","Les cibles sont basées sur l’incidence et la prévalence du VIH aux niveaux national et infranational et sur l’évaluation de la population à risque",null,null,null,null,null,null,0,0,0]
[null,null,null,"○","Les cibles sont informées par des données de mise en œuvre dans le pays (ex. : études de démonstration, le cas échéant)",null,null,null,null,null,null,0,0,0]
[null,null,null,"○","Les cibles sont ventilées par sexe, population clé et âge (avec des tranches d’âge plus petites pour les populations plus jeunes, à savoir 15-19 ans, 20-24 ans, 25-29 ans, etc.)",null,null,null,null,null,null,0,0,0]
[null,null,null,"○","Des calendriers pour la réalisation des cibles sont en place",null,null,null,null,null,null,0,0,0]
[null,null,null,"○","Les cibles sont corrélées au budget et aux sources de financement",null,null,null,null,null,null,0,0,0]
[null,null,null,"○","Fixation des cibles, prévisions et calcul des coûts du programme à l’aide de méthodes et d’outils fondés sur des preuves – ex. : PrEP-it 2.0",null,null,null,null,null,null,0,0,0]
[null,null,null,"○","Les indicateurs et les cibles sont conformes aux normes internationales (Plan d’urgence présidentiel de lutte contre le sida (PEPFAR), lignes directrices de l’OMS)",null,null,null,null,null,null,0,0,0]
[null,null,null,"○","Document d’orientation sur le suivi et l’évaluation de la PaE disponible pour référence",null,null,null,null,null,null,0,0,0]
[null,null,"Stratégie de communication","○","Stratégie de communication globale en place",null,null,null,null,{"$f":"IFERROR(O27,\"-\")","v":"-"},null,0,0,0,{"$f":"IFERROR(ROUND(AVERAGEIF(L27:N34,\"<>0\",L27:N34),0),\"-\")","v":"-"}]
[null,null,null,"○","Implication de membres de groupes prioritaires et de populations clés dans l’élaboration de la stratégie de communication et des supports de création de la demande",null,null,null,null,null,null,0,0,0]
[null,null,null,"○","La stratégie de communication comprend À LA FOIS 1) une éducation de base et une sensibilisation à la PaE pour la population générale et 2) une stratégie de création de la demande pour les personnes à haut risque, avec des informations, une éducation et des supports de communication",null,null,null,null,null,null,0,0,0]
[null,null,null,"○","L’approche est inclusive et non stigmatisante",null,null,null,null,null,null,0,0,0]
[null,null,null,"○","Multiples canaux de mobilisation en faveur de la PaE (médias, médias sociaux, éducation par les pairs)",null,null,null,null,null,null,0,0,0]
[null,null,null,"○","Les messages de création de la demande sont différenciés pour les populations prioritaires et sont non stigmatisants et sensibles",null,null,null,null,null,null,0,0,0]
[null,null,null,"○","La stratégie de communication autour de la PaE fait partie d’une stratégie de communication plus large pour la promotion de la santé sexuelle",null,null,null,null,null,null,0,0,0]
[null,null,null,"○","Les supports de communication font l’objet de tests pilotes",null,null,null,null,null,null,0,0,0]
[null,null,"Approvisionnement"]
[null,null,"Quantification des produits de base nécessaires","○","Les prévisions de l’offre et de la demande sont basées sur des populations à risque et sur des cibles et tiennent compte de la croissance prévue du programme",null,null,null,null,{"$f":"IFERROR(O36,\"-\")","v":"-"},null,0,0,0,{"$f":"IFERROR(ROUND(AVERAGEIF(L36:N39,\"<>0\",L36:N39),0),\"-\")","v":"-"}]
[null,null,null,"○","Comprend toutes les composantes cliniques essentielles du programme de PaE, ainsi que les fournitures connexes à la PaE (modalités de la PaE – médicament, anneau, injection – tests VIH, tests ClCr, tests VHB, autres tests IST, fournitures de PF, dont préservatifs, autres) ",null,null,null,null,null,null,0,0,0]
[null,null,null,"○","Informée par les données d’utilisation du projet dans le pays (le cas échéant)",null,null,null,null,null,null,0,0,0]
[null,null,null,"○","Au fur et à mesure de la maturation du programme, les données d’utilisation alimentent la quantification",null,null,null,null,null,null,0,0,0]
[null,null,"Plan d’approvisionnement en produits de base","○","Contrat du fabricant pour l’achat / la fourniture des composants essentiels du paquet de services cliniques de PaE en place",null,null,null,null,{"$f":"IFERROR(O40,\"-\")","v":"-"},null,0,0,0,{"$f":"IFERROR(ROUND(AVERAGEIF(L40:N44,\"<>0\",L40:N44),0),\"-\")","v":"-"}]
[null,null,null,"○","L’approvisionnement est fiable et adéquat pour répondre à la consommation actuelle, avec une marge pour tenir compte de la demande croissante",null,null,null,null,null,null,0,0,0]
[null,null,null,"○","Le plan d’approvisionnement est corrélé au budget et aux sources de financement ",null,null,null,null,null,null,0,0,0]
[null,null,null,"○","Le plan d’approvisionnement est pluriannuel",null,null,null,null,null,null,0,0,0]
[null,null,null,"○","L’approvisionnement en produits de base se fait par appel d’offres",null,null,null,null,null,null,0,0,0]
[null,null,"Chaîne d’approvisionnement / SIGL (système d’information et de gestion logistique)","○","L’approvisionnement des composants essentiels du paquet de services cliniques de PaE et des fournitures connexes est ininterrompu",null,null,null,null,{"$f":"IFERROR(O45,\"-\")","v":"-"},null,0,0,0,{"$f":"IFERROR(ROUND(AVERAGEIF(L45:N52,\"<>0\",L45:N52),0),\"-\")","v":"-"}]
[null,null,null,"○","Utilise la chaîne de distribution existante",null,null,null,null,null,null,0,0,0]
[null,null,null,"○","Les bonnes pratiques de distribution sont respectées ",null,null,null,null,null,null,0,0,0]
[null,null,null,"○","Les stocks sont bien gérés, il n’y a pas de rupture de stock, les médicaments périmés sont dûment gérés",null,null,null,null,null,null,0,0,0]
[null,null,null,"○","Les produits sont distribués à tous les établissements dispensant la PaE (même s’ils ne dispensent pas de TAR)",null,null,null,null,null,null,0,0,0]
[null,null,null,"○","Des mécanismes d’assurance qualité sont en place",null,null,null,null,null,null,0,0,0]
[null,null,null,"○","Le volume de produits de PaE distribués par groupe de population est utilisé pour surveiller la couverture",null,null,null,null,null,null,0,0,0]
[null,null,null,"○","Le SIGL donne une image précise de l’état des produits du paquet de la PaE dans le pays (et ceci est évalué périodiquement)",null,null,null,null,null,null,0,0,0]
[null,null,"Prestation de services"]
[null,null,"Différenciés","○","Des services de PaE sont disponibles dans les établissements (évaluation de l’état de préparation des établissements réalisée dans tous les établissements dispensant la PaE) ",null,null,null,null,{"$f":"IFERROR(O54,\"-\")","v":"-"},null,0,0,0,{"$f":"IFERROR(ROUND(AVERAGEIF(L54:N57,\"<>0\",L54:N57),0),\"-\")","v":"-"}]
[null,null,null,"○","Des services de PaE sont disponibles en dehors de l’établissement (services mobiles/de proximité)",null,null,null,null,null,null,0,0,0]
[null,null,null,"○","Des services de PaE sont disponibles par le biais de mécanismes dirigés par la communauté (ex. : contrats sociaux, société civile)",null,null,null,null,null,null,0,0,0]
[null,null,null,"○","Les services de PaE comprennent la prestation de PaE par des pairs",null,null,null,null,null,null,0,0,0]
[null,null,"Intégrés","○","Liaison avec des options préventives (y compris la PaE) à tous les points de dépistage du VIH",null,null,null,null,{"$f":"IFERROR(O58,\"-\")","v":"-"},null,0,0,0,{"$f":"IFERROR(ROUND(AVERAGEIF(L58:N63,\"<>0\",L58:N63),0),\"-\")","v":"-"}]
[null,null,null,"○","PaE disponible pour les patientes accédant aux services de soins prénatals (SP) et post-natals (SPN)",null,null,null,null,null,null,0,0,0]
[null,null,null,"○","PaE disponible pour les patients ayant accès aux services de santé sexuelle et reproductive (SSR) et de planification familiale (PF)",null,null,null,null,null,null,0,0,0]
[null,null,null,"○","PaE disponible pour les patients cherchant à se faire dépister pour une IST",null,null,null,null,null,null,0,0,0]
[null,null,null,"○","PaE disponible dans les points de services ambulatoires",null,null,null,null,null,null,0,0,0]
[null,null,null,"○","PaE disponible pour les partenaires des patients accédant aux services VIH",null,null,null,null,null,null,0,0,0]
[null,null,"Accessibles","○","Les établissements fournissant des services de PaE ont des heures d’ouverture prolongées (après les heures de bureau et pendant les week-ends)",null,null,null,null,{"$f":"IFERROR(O64,\"-\")","v":"-"},null,0,0,0,{"$f":"IFERROR(ROUND(AVERAGEIF(L64:N67,\"<>0\",L64:N67),0),\"-\")","v":"-"}]
[null,null,null,"○","Les établissements fournissant des services de PaE offrent des services adaptés aux jeunes",null,null,null,null,null,null,0,0,0]
[null,null,null,"○","Les établissements fournissant des services de PaE sont géographiquement bien situés",null,null,null,null,null,null,{"$f":"IF(ISBLANK(G66),0,1)","v":0},{"$f":"IF(ISBLANK(H66),0,3)","v":0},{"$f":"IF(ISBLANK(I66),0,5)","v":0}]
[null,null,null,"○","Les établissements fournissant des services de PaE accueillent les patients qui commandent la PaE en ligne",null,null,null,null,null,null,0,0,0]
[null,null,"Acceptables","○","Les besoins uniques des populations accédant à la PaE, qui peuvent inclure des personnes vivant avec le VIH et des jeunes, sont pris en compte de manière adéquate ",null,null,null,null,{"$f":"IFERROR(O68,\"-\")","v":"-"},null,0,0,0,{"$f":"IFERROR(ROUND(AVERAGEIF(L68:N70,\"<>0\",L68:N70),0),\"-\")","v":"-"}]
[null,null,null,"○","La prestation de la PaE ne porte pas de jugement et n’est pas stigmatisante",null,null,null,null,null,null,0,0,0]
[null,null,null,"○","La prestation de la PaE est confidentielle et garantit l’anonymat",null,null,null,null,null,null,0,0,0]
[null,null,"Assistance à la prestation de services",null,null,null,null,null,null,null,null,0,0,0]
[null,null,"Formation","○","La PaE est incluse dans le paquet de formation de base pour tous les travailleurs de santé",null,null,null,null,{"$f":"IFERROR(O72,\"-\")","v":"-"},null,0,0,0,{"$f":"IFERROR(ROUND(AVERAGEIF(L72:N77,\"<>0\",L72:N77),0),\"-\")","v":"-"}]
[null,null,null,"○","Responsables et prestataires de la PaE formés à la prestation de services de PaE sans jugement ni préjugés",null,null,null,null,null,null,0,0,0]
[null,null,null,"○","Les responsables et prestataires de la PaE reçoivent une formation efficace et spécifique à leur poste, ainsi qu’un encadrement et un soutien permanents",null,null,null,null,null,null,0,0,0]
[null,null,null,"○","Responsables et prestataires de la PaE formés aux outils de reporting, aux délais et aux définitions des indicateurs",null,null,null,null,null,null,0,0,0]
[null,null,null,"○","Responsables et prestataires de la PaE formés aux mécanismes de suivi et de signalement des événements indésirables",null,null,null,null,null,null,0,0,0]
[null,null,null,"○","La formation des prestataires est évaluée et les formateurs reçoivent un retour d’information",null,null,null,null,null,null,0,0,0]
[null,null,"Outils de prestation de services","○","Aides au travail, algorithmes d’initiation et de suivi et outils de conseil en orientation élaborés conformément à la politique et aux directives nationales",null,null,null,null,{"$f":"IFERROR(O78,\"-\")","v":"-"},null,0,0,0,{"$f":"IFERROR(ROUND(AVERAGEIF(L78:N80,\"<>0\",L78:N80),0),\"-\")","v":"-"}]
[null,null,null,"○","Les outils tiennent compte des besoins uniques des différentes populations",null,null,null,null,null,null,0,0,0]
[null,null,null,"○","Les outils sont disponibles et utilisés partout où des services de PaE sont dispensés",null,null,null,null,null,null,0,0,0]
[null,null,"Tests d’éligibilité et d’initiation","○","Diverses options de dépistage du VIH sont disponibles (en établissement, autodépistage, sensibilisation, etc.)",null,null,null,null,{"$f":"IFERROR(O81,\"-\")","v":"-"},null,0,0,0,{"$f":"IFERROR(ROUND(AVERAGEIF(L81:N91,\"<>0\",L81:N91),0),\"-\")","v":"-"}]
[null,null,null,"○","Des liens directs entre les services de dépistage du VIH et les services de prévention (dont les services de PaE) sont en place",null,null,null,null,null,null,0,0,0]
[null,null,null,"○","L’évaluation du risque d’infection par le VIH d’un individu donne lieu à une conversation nuancée avec le prestataire – elle tient compte de la « saison du risque » individuelle, est axée sur le comportement, n’est pas basée sur des populations cibles et aborde une combinaison de méthodes de réduction du risque",null,null,null,null,null,null,0,0,0]
[null,null,null,"○","Toutes les méthodes de prévention de la PaE disponibles (PaE orale, anneau, préparations injectables) sont abordées",null,null,null,null,null,null,0,0,0]
[null,null,null,"○","Une évaluation de l’état de préparation individuelle est réalisée avant l’initiation de la méthode de PaE choisie",null,null,null,null,null,null,0,0,0]
[null,null,null,"○","Dépistage de l’infection aiguë par le VIH (IAV), qui peut inclure un test de charge virale (CV) pour les patients présentant des symptômes (des lignes directrices claires sont disponibles en l’absence de CV)",null,null,null,null,null,null,0,0,0]
[null,null,null,"○","Dépistage, vaccination ou traitement de l’hépatite dispensés conformément aux directives nationales (VHB, VHC)",null,null,null,null,null,null,0,0,0]
[null,null,null,"○","Le dépistage de la syphilis et d’autres IST est assuré",null,null,null,null,null,null,0,0,0]
[null,null,null,"○","Pour la prestation de la PrEP orale – Fonction rénale évaluée par un test de clairance de la créatinine (ClCr). Les résultats tardifs ne constituent pas un obstacle à l’initiation",null,null,null,null,null,null,0,0,0]
[null,null,null,"○","Utilisation correcte de la PaE, avec utilisation efficace, démarrage et arrêt sécurisés, temps nécessaire à la protection, protection en fonction des événements (spécifiquement pour la PaE orale et les hommes ayant des rapports sexuels avec des hommes (HSH)) et effets secondaires potentiels expliqués au patient",null,null,null,null,null,null,0,0,0]
[null,null,null,"○","Possibilité d’initiation le jour même",null,null,null,null,null,null,0,0,0]
[null,null,"Suivi clinique","○","Nouveau test de dépistage du VIH au mois 1",null,null,null,null,{"$f":"IFERROR(O92,\"-\")","v":"-"},null,0,0,0,{"$f":"IFERROR(ROUND(AVERAGEIF(L92:N100,\"<>0\",L92:N100),0),\"-\")","v":"-"}]
[null,null,null,"○","Suivi ultérieur et dépistage du VIH à 3 mois (l’autodiagnostic du VIH avec validation clinique est une option)",null,null,null,null,null,null,0,0,0]
[null,null,null,"○","Évaluation continue des risques assurée",null,null,null,null,null,null,0,0,0]
[null,null,null,"○","Surveillance des EIG (événements indésirables graves) et des effets secondaires",null,null,null,null,null,null,0,0,0]
[null,null,null,"○","Le dépistage de la syphilis et d’autres IST est assuré",null,null,null,null,null,null,0,0,0]
[null,null,null,"○","Des procédures de dépistage périodique de drogues sont en place",null,null,null,null,null,null,0,0,0]
[null,null,null,"○","Le paquet de PaE est acceptable pour les utilisateurs (c’est-à-dire discret et adapté aux jeunes)",null,null,null,null,null,null,0,0,0]
[null,null,null,"○","Possibilité de prescrire ou de délivrer des ordonnances sur plusieurs mois",null,null,null,null,null,null,0,0,0]
[null,null,null,"○","Les patients qui ne reviennent pas à leurs rendez-vous de suivi sont contactés",null,null,null,null,null,null,0,0,0]
[null,null,"Conseils et rapport d’aide à l’observance de l’utilisation effective","○","Des conseils nuancés et individualisés sont prodigués",null,null,null,null,{"$f":"IFERROR(O101,\"-\")","v":"-"},null,0,0,0,{"$f":"IFERROR(ROUND(AVERAGEIF(L101:N110,\"<>0\",L101:N110),0),\"-\")","v":"-"}]
[null,null,null,"○","L’utilisation efficace de la PaE est évaluée et intégrée à la discussion sur les risques permanents",null,null,null,null,null,null,0,0,0]
[null,null,null,"○","Assistance communautaire et de conseil par les pairs disponible (ex. : clients experts, groupes d’assistance par les pairs) ",null,null,null,null,null,null,0,0,0]
[null,null,null,"○","Supports ICP disponibles",null,null,null,null,null,null,0,0,0]
[null,null,null,"○","L’activité de conseil couvre les éléments suivants : Efficacité de la méthode choisie, utilisation requise – dose quotidienne (PaE orale), mensuelle ou plurimensuelle (méthodes à action prolongée) –, que faire en cas d’oubli de la dose, de chute de l’anneau",null,null,null,null,null,null,0,0,0]
[null,null,null,"○","L’activité de conseil couvre les éléments suivants : Saisons du risque",null,null,null,null,null,null,0,0,0]
[null,null,null,"○","L’activité de conseil couvre les éléments suivants : L’importance d’un suivi continu des patients sous PaE",null,null,null,null,null,null,0,0,0]
[null,null,null,"○","L’activité de conseil couvre les éléments suivants : Effets secondaires et gestion des effets secondaires",null,null,null,null,null,null,0,0,0]
[null,null,null,null,"L’activité de conseil couvre les éléments suivants : Soutien à la continuité",null,null,null,null,null,null,0,0,0]
[null,null,null,"○","L’activité de conseil couvre les éléments suivants : Comment interrompre et reprendre la PaE en toute sécurité ?",null,null,null,null,null,null,0,0,0]
[null,null,"Paquet PaE connexe","○","Tests de dépistage des IST (syphilis, chlamydia, gonorrhée) pratiqués systématiquement (en même temps que les visites de PaE)",null,null,null,null,{"$f":"IFERROR(O111,\"-\")","v":"-"},null,0,0,0,{"$f":"IFERROR(ROUND(AVERAGEIF(L111:N116,\"<>0\",L111:N116),0),\"-\")","v":"-"}]
[null,null,null,"○","Tests de grossesse et options de planification familiale fournies (préservatifs, pilule contraceptive orale, injections, implant, etc.)",null,null,null,null,null,null,0,0,0]
[null,null,null,"○","Lien avec la CMMV, si applicable et acceptable",null,null,null,null,null,null,0,0,0]
[null,null,null,"○","Stratégies de réduction des risques en place pour les personnes qui consomment des drogues (échange de seringues, méthadone disponible selon les besoins)",null,null,null,null,null,null,0,0,0]
[null,null,null,"○","Discussion sur les risques, la prévention du VIH et la PaE avec les patients qui ne cherchent pas de services VIH (SP, SPN, SSR, etc.)",null,null,null,null,null,null,0,0,0]
[null,null,null,"○","Services fournis par les partenaires",null,null,null,null,null,null,0,0,0]
[null,null,"COVID-19","○","Des programmes sont en place pour encourager et suivre l’utilisation du vaccin COVID-19 chez les usagers de PaE",null,null,null,null,{"$f":"IFERROR(O117,\"-\")","v":"-"},null,0,0,0,{"$f":"IFERROR(ROUND(AVERAGEIF(L117:N118,\"<>0\",L117:M118),0),\"-\")","v":"-"}]
[null,null,null,"○","Maintien de la messagerie et de l’accès sécurisé aux modèles de prestation de services hors établissement (ex. : communautaires, à domicile, de télésanté) pendant les pics de COVID-19 afin d’éviter toute interruption de service",null,null,null,null,null,null,0,0,0]
[null,null,"Suivi du programme"]
[null,null,"Système de suivi et d’évaluation de la PaE","○","Des directives de suivi et d’évaluation et de surveillance du sida dans les pays, inspirées des lignes directrices de l’OMS (et du PEPFAR, le cas échéant), sont en place",null,null,null,null,{"$f":"IFERROR(O120,\"-\")","v":"-"},null,0,0,0,{"$f":"IFERROR(ROUND(AVERAGEIF(L120:N128,\"<>0\",L120:N128),0),\"-\")","v":"-"}]
[null,null,null,"○","Intégration du suivi et de l’évaluation de la PaE dans le système national d’information et de gestion de la santé (SIGS) (électronique ou sur papier, selon les disponibilités)",null,null,null,null,null,null,0,0,0]
[null,null,null,"○","Le SIGS permet la collecte de données en temps réel",null,null,null,null,null,null,0,0,0]
[null,null,null,"○"," Système en place pour l’identification unique des patients sous PaE, en cohérence avec l’identification existante si elle est disponible",null,null,null,null,null,null,0,0,0]
[null,null,null,"○","Prestataires de PaE formés sur les indicateurs et les définitions",null,null,null,null,null,null,0,0,0]
[null,null,null,"○","Un mécanisme d’établissement de rapports de routine est en place ",null,null,null,null,null,null,{"$f":"IF(ISBLANK(G125),0,1)","v":0},{"$f":"IF(ISBLANK(H125),0,3)","v":0},{"$f":"IF(ISBLANK(I125),0,5)","v":0}]
[null,null,null,"○","Les données sont ventilées par sexe, population clé et âge (avec des tranches d’âge plus petites pour les populations plus jeunes, à savoir 15-19 ans, 20-24 ans, 25-29 ans, etc.) et au niveau infranational",null,null,null,null,null,null,0,0,0]
[null,null,null,"○","Les données sont utilisées pour suivre les progrès et informer la mobilisation des ressources financières et techniques",null,null,null,null,null,null,0,0,0]
[null,null,null,"○","Les progrès sont documentés par un rapport annuel au niveau du pays",null,null,null,null,null,null,0,0,0]
[null,null,"Flux de données","○","Mise en place de directives claires en matière de rapports",null,null,null,null,{"$f":"IFERROR(O129,\"-\")","v":"-"},null,0,0,0,{"$f":"IFERROR(ROUND(AVERAGEIF(L129:N139,\"<>0\",L129:N139),0),\"-\")","v":"-"}]
[null,null,null,"○","Flux de données clair entre les cliniques, le niveau infranational et le niveau national",null,null,null,null,null,null,0,0,0]
[null,null,null,"○","Examen régulier des données et du retour d’information fourni",null,null,null,null,null,null,0,0,0]
[null,null,null,"○","Les évaluations de la qualité des données sont standardisées, ont lieu régulièrement et sont utilisées pour résoudre les problèmes liés aux données",null,null,null,null,null,null,0,0,0]
[null,null,null,"○","Toutes les parties prenantes font rapport dans un seul système national et les données sont harmonisées",null,null,null,null,null,null,0,0,0]
[null,null,null,"○","Tous les responsables de la mise en œuvre alimentent le système de données avec des données précises et opportunes",null,null,null,null,null,null,0,0,0]
[null,null,null,"○","Des mécanismes de responsabilisation orientant le flux de données et garantissant la qualité de la collecte des données sont en place et appliqués",null,null,null,null,null,null,0,0,0]
[null,null,null,"○","Les données sont diffusées jusqu’aux niveaux infranationaux ",null,null,null,null,null,null,0,0,0]
[null,null,null,"○","Les responsables de la mise en œuvre ont les moyens d’utiliser les données dans la prise de décision ",null,null,null,null,null,null,0,0,0]
[null,null,null,"○","Les données sont utilisées pour détecter les événements indésirables (EI), évaluer la norme de soins, mesurer les progrès vers la réalisation des objectifs du programme et guider la prise de décision",null,null,null,null,null,null,0,0,0]
[null,null,null,"○","Les données sont transmises au GTT en temps utile",null,null,null,null,null,null,0,0,0]
[null,null,"Qualité","○","Des évaluations de la qualité ont lieu régulièrement aux niveaux national et infranational",null,null,null,null,{"$f":"IFERROR(O140,\"-\")","v":"-"},null,0,0,0,{"$f":"IFERROR(ROUND(AVERAGEIF(L140:N145,\"<>0\",L140:N145),0),\"-\")","v":"-"}]
[null,null,null,"○","Les évaluations de la qualité sont intégrées au système de soins de santé au sens large et couvrent le secteur traditionnel",null,null,null,null,null,null,0,0,0]
[null,null,null,"○","Tous les partenaires respectent les normes de qualité mondiales",null,null,null,null,null,null,0,0,0]
[null,null,null,"○","Les évaluations de la qualité comprennent plusieurs approches : l’observation, les entretiens, les discussions de groupe, les contrôles d’inventaire, les revues documentaires",null,null,null,null,null,null,0,0,0]
[null,null,null,"○","Les conclusions des évaluations de la qualité sont communiquées à toutes les parties prenantes et les mesures appropriées sont prises",null,null,null,null,null,null,0,0,0]
[null,null,null,"○","Il existe un soutien pour l’amélioration de la qualité",null,null,null,null,null,null,0,0,0]
[null,null,"Pharmacovigilance","○","Il existe des définitions nationales pour la classification des EI, conformes aux normes mondiales",null,null,null,null,{"$f":"IFERROR(O146,\"-\")","v":"-"},null,0,0,0,{"$f":"IFERROR(ROUND(AVERAGEIF(L146:N153,\"<>0\",L146:N153),0),\"-\")","v":"-"}]
[null,null,null,"○","La gestion des EI est standardisée dans l’ensemble du programme ",null,null,null,null,null,null,0,0,0]
[null,null,null,"○","Toutes les parties prenantes rendent compte des EI sur une base régulière définie",null,null,null,null,null,null,0,0,0]
[null,null,null,"○","Les rapports sur les EI sont précis ",null,null,null,null,null,null,0,0,0]
[null,null,null,"○","Le retour d’information et le suivi des patients ont lieu et sont documentés",null,null,null,null,null,null,0,0,0]
[null,null,null,"○","Des processus d’orientation des patients sont en place pour relier ceux qui ont besoin de soins supplémentaires",null,null,null,null,null,null,0,0,0]
[null,null,null,"○","Test de résistance pour les personnes séroconverties",null,null,null,null,null,null,0,0,0]
[null,null,null,"○","Enquête périodique sur la résistance du VIH aux médicaments pour les utilisateurs de la PaE",null,null,null,null,null,null,0,0,0]
[]
[null,null,null,null,null,null,null,null,null,null,null,null,{"$f":"COUNTIF(O6:O153,\"-\")","v":22}]
[null,null,null,null,null,null,null,null,null,null,null,null,{"$f":"COUNTIF(O6:O153,\">0\")","v":0}]
[null,null,null,null,null,null,null,null,null,null,null,"Sheet Completion",{"$f":"M156/(M155+M156)","v":0},{"$f":"1-M157","v":1}]

{"sheet":"Résultats de programme ","index":7,"n_rows":37,"n_cols":15,"rows_kept":37,"cut":false,"hidden":false,"merged":[[27,9,32,9],[1,2,1,8],[5,9,10,9],[11,9,15,9],[16,9,20,9],[21,9,26,9],[5,2,10,2],[11,2,15,2],[16,2,20,2],[21,2,26,2],[27,2,32,2]]}
[]
[null,null,"Résultats de programme"]
[]
[null,null,"Élément","Critères",null,"S/O","Absent","Présent mais non optimal","Présent et fonctionnel","Moyenne de l’élément","Commentaires\n(le cas échéant)","Absent","Present","Optimal","Average"]
[null,null,"Résultats et indicateurs"]
[null,null,"Utilisation de la PaE","○","Des indicateurs d’utilisation de la PaE pour toutes les modalités de PaE disponibles (PaE orale, anneau, préparations injectables à action prolongée) sont en place",null,null,null,null,{"$f":"IFERROR(O6,\"-\")","v":"-"},null,{"$f":"IF(ISBLANK(G6),0,1)","v":0},{"$f":"IF(ISBLANK(H6),0,3)","v":0},{"$f":"IF(ISBLANK(I6),0,5)","v":0},{"$f":"IFERROR(ROUND(AVERAGEIF(L6:N11,\"<>0\",L6:N11),0),\"-\")","v":"-"}]
[null,null,null,"○","Les indicateurs sont définis comme suit : pourcentage de personnes éligibles qui ont initié [modalité de PaE sélectionnée] pendant la période de référence",null,null,null,null,null,null,{"$f":"IF(ISBLANK(G7),0,1)","v":0},{"$f":"IF(ISBLANK(H7),0,3)","v":0},{"$f":"IF(ISBLANK(I7),0,5)","v":0}]
[null,null,null,"○","Les données de l’indicateur d’utilisation de la PaE sont collectées trimestriellement",null,null,null,null,null,null,0,0,0]
[null,null,null,"○","Les données de [modalité de PaE sélectionnée] sont ventilées par sexe, population clé, unité géographique et âge (avec des tranches d’âge plus petites pour les populations plus jeunes, à savoir 15-19 ans, 20-24 ans, 25-29 ans, etc.)",null,null,null,null,null,null,0,0,0]
[null,null,null,"○","Les indicateurs pour [modalité de PaE sélectionnée] sont ventilés selon qu’il s’agit d’une première utilisation ou d’une utilisation répétée de la PaE",null,null,null,null,null,null,0,0,0]
[null,null,null,"○","La cible définie au niveau national (c’est-à-dire trimestrielle ou annuelle) est atteinte",null,null,null,null,null,null,0,0,0]
[null,null,"Poursuite de la PaE","○","Des indicateurs de poursuite de la PaE pour toutes les modalités de PaE disponibles (PaE orale, anneau, préparations injectables à action prolongée) sont en place",null,null,null,null,{"$f":"IFERROR(O12,\"-\")","v":"-"},null,0,0,0,{"$f":"IFERROR(ROUND(AVERAGEIF(L12:N16,\"<>0\",L12:N16),0),\"-\")","v":"-"}]
[null,null,null,"○","Les indicateurs sont définis comme suit : pourcentage d’utilisateurs de [sélectionner la modalité de PaE] qui ont poursuivi [modalité de PaE sélectionnée] pendant 3 mois consécutifs après l’avoir initiée pendant la période de référence",null,null,null,null,null,null,0,0,0]
[null,null,null,"○","Les données de l’indicateur de poursuite de la PaE sont collectées trimestriellement",null,null,null,null,null,null,0,0,0]
[null,null,null,"○","Les données de [modalité de PaE sélectionnée] sont ventilées par sexe, population clé, unité géographique et âge (avec des tranches d’âge plus petites pour les populations plus jeunes, à savoir 15-19 ans, 20-24 ans, 25-29 ans, etc.)",null,null,null,null,null,null,0,0,0]
[null,null,null,"○","La cible définie au niveau national (c’est-à-dire trimestrielle ou annuelle) est atteinte",null,null,null,null,null,null,0,0,0]
[null,null,"PaE en cours","○","Des indicateurs de PaE en cours pour toutes les modalités de PaE disponibles (PaE orale, anneau, préparations injectables à action prolongée) sont en place",null,null,null,null,{"$f":"IFERROR(O17,\"-\")","v":"-"},null,0,0,0,{"$f":"IFERROR(ROUND(AVERAGEIF(L17:N21,\"<>0\",L17:N21),0),\"-\")","v":"-"}]
[null,null,null,"○","Les indicateurs sont définis comme suit : nombre de personnes ayant reçu [sélectionner la modalité de PaE] au moins une fois pendant la période de référence",null,null,null,null,null,null,0,0,0]
[null,null,null,"○","Les données de l’indicateur de PaE en cours sont collectées trimestriellement",null,null,null,null,null,null,0,0,0]
[null,null,null,"○","Les indicateurs de [modalité de PaE sélectionnée] sont ventilés par sexe, population clé, unité géographique et âge (avec des tranches d’âge plus petites pour les populations plus jeunes, à savoir 15-19 ans, 20-24 ans, 25-29 ans, etc.)",null,null,null,null,null,null,0,0,0]
[null,null,null,"○","La cible définie au niveau national (c’est-à-dire trimestrielle ou annuelle) est atteinte",null,null,null,null,null,null,0,0,0]
[null,null,"Séroconversion chez les utilisateurs de la PaE ","○","Des indicateurs de séroconversion parmi les utilisateurs de la PaE (pour toutes les modalités de PaE disponibles) sont en place",null,null,null,null,{"$f":"IFERROR(O22,\"-\")","v":"-"},null,0,0,0,{"$f":"IFERROR(ROUND(AVERAGEIF(L22:N27,\"<>0\",L22:N27),0),\"-\")","v":"-"}]
[null,null,null,"○","Les indicateurs sont clairement définis, notamment : séparés en fonction du moment de la séroconversion, c’est-à-dire pendant la PaE et après l’arrêt de la PaE",null,null,null,null,null,null,0,0,0]
[null,null,null,"○","La résistance aux médicaments chez les séroconvertis est évaluée",null,null,null,null,null,null,0,0,0]
[null,null,null,"○","Évaluation de l’historique d’utilisation de la PaE chez les séroconvertis",null,null,null,null,null,null,0,0,0]
[null,null,null,"○","Les indicateurs de [modalité de PaE sélectionnée] sont ventilés par sexe, population clé, unité géographique et âge (avec des tranches d’âge plus petites pour les populations plus jeunes, à savoir 15-19 ans, 20-24 ans, 25-29 ans, etc.)",null,null,null,null,null,null,0,0,0]
[null,null,null,"○","La cible définie au niveau national (c’est-à-dire trimestrielle ou annuelle) est atteinte",null,null,null,null,null,null,0,0,0]
[null,null,"Efficacité du programme évaluée",null,"L’évaluation de l’efficacité peut inclure :",null,null,null,null,{"$f":"IFERROR(O28,\"-\")","v":"-"},null,0,0,0,{"$f":"IFERROR(ROUND(AVERAGEIF(L28:N33,\"<>0\",L28:N33),0),\"-\")","v":"-"}]
[null,null,null,"○","L’évaluation comprend l’analyse de l’impact (nombre d’infections VIH évitées)",null,null,null,null,null,null,0,0,0]
[null,null,null,"○","L’évaluation comprend un indicateur de compensation des risques (surveillance des IST) ",null,null,null,null,null,null,0,0,0]
[null,null,null,"○","L’évaluation comprend un indicateur des bénéfices collatéraux (nombre de personnes séropositives identifiées grâce au programme de PaE)",null,null,null,null,null,null,0,0,0]
[null,null,null,"○","L’évaluation est effectuée de manière systématique",null,null,null,null,null,null,0,0,0]
[null,null,null,"○","Le programme s’adapte à l’évolution de l’incidence du VIH et du risque associé",null,null,null,null,null,null,0,0,0]
[]
[null,null,null,null,null,null,null,null,null,null,null,null,{"$f":"COUNTIF(O6:O33,\"-\")","v":5}]
[null,null,null,null,null,null,null,null,null,null,null,null,{"$f":"COUNTIF(O6:O33,\">0\")","v":0}]
[null,null,null,null,null,null,null,null,null,null,null,"Sheet Completion",{"$f":"M36/(M35+M36)","v":0},{"$f":"1-M37","v":1}]

{"sheet":"Résumé des notes","index":8,"n_rows":41,"n_cols":11,"rows_kept":41,"cut":false,"hidden":false,"merged":[[29,2,35,2],[25,3,28,3],[8,3,11,3],[12,3,14,3],[15,3,18,3],[19,3,20,3],[29,3,33,3],[1,2,1,6],[2,3,4,3],[5,3,6,3],[2,2,7,2],[21,3,24,3],[8,2,28,2]]}
[]
[null,null,"Résumé des notes"]
[null,null,"Gestion de \nprogramme","Stratégie, politique et réglementation",null,"Stratégie nationale de prévention du VIH",{"$f":"'Gestion de programme'!O6","v":"-"}]
[null,null,null,null,null,"Directives cliniques nationales",{"$f":"'Gestion de programme'!O12","v":"-"}]
[null,null,null,null,null,"Statut réglementaire des médicaments associés à la PaE",{"$f":"'Gestion de programme'!O21","v":"-"}]
[null,null,null,"Leadership et coordination",null,"Leadership et obligation de rendre compte",{"$f":"'Gestion de programme'!O25","v":"-"}]
[null,null,null,null,null,"Engagement des parties prenantes",{"$f":"'Gestion de programme'!O28","v":"-"}]
[null,null,null,"Financement",null,"Budget",{"$f":"'Gestion de programme'!O35","v":"-"}]
[null,null,"Mise en œuvre de programme","Ciblage et planification",null,"Plans de travail pour la mise en œuvre",{"$f":"'Mise en œuvre de programme'!O6","v":"-"}]
[null,null,null,null,null,"Évaluation de la population à risque",{"$f":"'Mise en œuvre de programme'!O13","v":"-"}]
[null,null,null,null,null,"Cibles des indicateurs",{"$f":"'Mise en œuvre de programme'!O18","v":"-"}]
[null,null,null,null,null,"Stratégie de communication",{"$f":"'Mise en œuvre de programme'!O27","v":"-"}]
[null,null,null,"Approvisionnement",null,"Quantification des produits de base nécessaires",{"$f":"'Mise en œuvre de programme'!O36","v":"-"}]
[null,null,null,null,null,"Plan d’approvisionnement en produits de base",{"$f":"'Mise en œuvre de programme'!O40","v":"-"}]
[null,null,null,null,null,"Chaîne d’approvisionnement/SIGL",{"$f":"'Mise en œuvre de programme'!O45","v":"-"}]
[null,null,null,"Prestation de services",null,"Différenciés",{"$f":"'Mise en œuvre de programme'!O54","v":"-"}]
[null,null,null,null,null,"Intégrés",{"$f":"'Mise en œuvre de programme'!O58","v":"-"}]
[null,null,null,null,null,"Accessibles",{"$f":"'Mise en œuvre de programme'!O64","v":"-"}]
[null,null,null,null,null,"Acceptables",{"$f":"'Mise en œuvre de programme'!O68","v":"-"}]
[null,null,null,"Assistance à la prestation de services",null,"Formation",{"$f":"'Mise en œuvre de programme'!O72","v":"-"}]
[null,null,null,null,null,"Outils de prestation de services",{"$f":"'Mise en œuvre de programme'!O78","v":"-"}]
[null,null,null,"Paquet de services cliniques",null,"Tests d’éligibilité et d’initiation",{"$f":"'Mise en œuvre de programme'!O81","v":"-"}]
[null,null,null,null,null,"Suivi clinique",{"$f":"'Mise en œuvre de programme'!O92","v":"-"}]
[null,null,null,null,null,"Conseils et rapport d’aide à l’observance de l’utilisation effective",{"$f":"'Mise en œuvre de programme'!O101","v":"-"}]
[null,null,null,null,null,"Paquet PaE connexe",{"$f":"'Mise en œuvre de programme'!O111","v":"-"}]
[null,null,null,"Suivi du programme",null,"Système de suivi et d’évaluation de la PaE",{"$f":"'Mise en œuvre de programme'!O120","v":"-"}]
[null,null,null,null,null,"Flux de données",{"$f":"'Mise en œuvre de programme'!O129","v":"-"}]
[null,null,null,null,null,"Qualité",{"$f":"'Mise en œuvre de programme'!O140","v":"-"}]
[null,null,null,null,null,"Pharmacovigilance",{"$f":"'Mise en œuvre de programme'!O146","v":"-"}]
[null,null,"Résultats de programme","Résultats et indicateurs",null,"Utilisation de la PaE",{"$f":"'Résultats de programme '!O6","v":"-"}]
[null,null,null,"6. Prestation de services différenciés",null,"Poursuite de la PaE",{"$f":"'Résultats de programme '!O12","v":"-"}]
[null,null,null,null,null,"PaE en cours",{"$f":"'Résultats de programme '!O17","v":"-"}]
[null,null,null,null,null,"Séroconversion chez les utilisateurs de la PaE ",{"$f":"'Résultats de programme '!O22","v":"-"}]
[null,null,null,null,null,"Efficacité du programme évaluée",{"$f":"'Résultats de programme '!O28","v":"-"}]
[null,null,null,"Indicateurs de durabilité",null,null,{"$f":"IFERROR(ROUND(AVERAGE('Gestion de programme'!P6:P83),0),\"-\")","v":"-"}]
[null,null,null,"Indicateurs COVID-19 (et autres pandémies)",null,null,{"$f":"IF((SUM('Gestion de programme'!L20:N20)+SUM('Mise en œuvre de programme'!L117:N117)+SUM('Mise en œuvre de programme'!L118:N118))/3=0,\"-\", ROUND((SUM('Gestion de programme'!L20:N20)+SUM('Mise en œuvre de programme'!L117:N117)+SUM('Mise en œuvre de programme'!L118:N118))/3,0))","v":"-"}]
[]
[]
[null,null,null,null,null,null,null,null,null,{"$f":"COUNTIF(G3:G36,\"-\")","v":34}]
[null,null,null,null,null,null,null,null,null,{"$f":"COUNTIF(G3:G36,\">0\")","v":0}]
[null,null,null,null,null,null,null,null,"PSAT Completion",{"$f":"J40/(J39+J40)","v":0},{"$f":"1-J41","v":1}]

{"sheet":"Étapes suivantes","index":9,"n_rows":54,"n_cols":8,"rows_kept":54,"cut":false,"hidden":false,"merged":[[1,2,1,8],[11,2,11,3]]}
[]
[null,null,"Étapes suivantes"]
[]
[null,null,null,null,null,"Élément à traiter/améliorer","Raison de la mauvaise performance","Actions proposées (ex. : soutien requis ou actions correctives)."]
[null,null,null,null,1,{"$f":"IFERROR(INDEX('Résumé des notes'!$F$1:$F$93,SMALL(IF('Résumé des notes'!$G$1:$G$93<=$C$12,ROW('Résumé des notes'!$G$1:$G$93)),ROW(3:3))),\"\")","v":0}]
[null,null,null,null,2,{"$f":"IFERROR(INDEX('Résumé des notes'!$F$1:$F$93,SMALL(IF('Résumé des notes'!$G$1:$G$93<=$C$12,ROW('Résumé des notes'!$G$1:$G$93)),ROW(4:4))),\"\")","v":0}]
[null,null,null,null,3,{"$f":"IFERROR(INDEX('Résumé des notes'!$F$1:$F$93,SMALL(IF('Résumé des notes'!$G$1:$G$93<=$C$12,ROW('Résumé des notes'!$G$1:$G$93)),ROW(5:5))),\"\")","v":0}]
[null,null,null,null,4,{"$f":"IFERROR(INDEX('Résumé des notes'!$F$1:$F$93,SMALL(IF('Résumé des notes'!$G$1:$G$93<=$C$12,ROW('Résumé des notes'!$G$1:$G$93)),ROW(6:6))),\"\")","v":0}]
[null,null,null,null,5,{"$f":"IFERROR(INDEX('Résumé des notes'!$F$1:$F$93,SMALL(IF('Résumé des notes'!$G$1:$G$93<=$C$12,ROW('Résumé des notes'!$G$1:$G$93)),ROW(7:7))),\"\")","v":0}]
[null,null,null,null,6,{"$f":"IFERROR(INDEX('Résumé des notes'!$F$1:$F$93,SMALL(IF('Résumé des notes'!$G$1:$G$93<=$C$12,ROW('Résumé des notes'!$G$1:$G$93)),ROW(8:8))),\"\")","v":0}]
[null,null,null,null,7,{"$f":"IFERROR(INDEX('Résumé des notes'!$F$1:$F$93,SMALL(IF('Résumé des notes'!$G$1:$G$93<=$C$12,ROW('Résumé des notes'!$G$1:$G$93)),ROW(9:9))),\"\")","v":0}]
[null,null,null,null,8,{"$f":"IFERROR(INDEX('Résumé des notes'!$F$1:$F$93,SMALL(IF('Résumé des notes'!$G$1:$G$93<=$C$12,ROW('Résumé des notes'!$G$1:$G$93)),ROW(10:10))),\"\")","v":0}]
[null,null,null,null,9,{"$f":"IFERROR(INDEX('Résumé des notes'!$F$1:$F$93,SMALL(IF('Résumé des notes'!$G$1:$G$93<=$C$12,ROW('Résumé des notes'!$G$1:$G$93)),ROW(11:11))),\"\")","v":0}]
[null,null,null,null,10,{"$f":"IFERROR(INDEX('Résumé des notes'!$F$1:$F$93,SMALL(IF('Résumé des notes'!$G$1:$G$93<=$C$12,ROW('Résumé des notes'!$G$1:$G$93)),ROW(12:12))),\"\")","v":0}]
[null,null,null,null,11,{"$f":"IFERROR(INDEX('Résumé des notes'!$F$1:$F$93,SMALL(IF('Résumé des notes'!$G$1:$G$93<=$C$12,ROW('Résumé des notes'!$G$1:$G$93)),ROW(13:13))),\"\")","v":0}]
[null,null,null,null,12,{"$f":"IFERROR(INDEX('Résumé des notes'!$F$1:$F$93,SMALL(IF('Résumé des notes'!$G$1:$G$93<=$C$12,ROW('Résumé des notes'!$G$1:$G$93)),ROW(14:14))),\"\")","v":0}]
[null,null,null,null,13,{"$f":"IFERROR(INDEX('Résumé des notes'!$F$1:$F$93,SMALL(IF('Résumé des notes'!$G$1:$G$93<=$C$12,ROW('Résumé des notes'!$G$1:$G$93)),ROW(15:15))),\"\")","v":0}]
[null,null,null,null,14,{"$f":"IFERROR(INDEX('Résumé des notes'!$F$1:$F$93,SMALL(IF('Résumé des notes'!$G$1:$G$93<=$C$12,ROW('Résumé des notes'!$G$1:$G$93)),ROW(16:16))),\"\")","v":0}]
[null,null,null,null,15,{"$f":"IFERROR(INDEX('Résumé des notes'!$F$1:$F$93,SMALL(IF('Résumé des notes'!$G$1:$G$93<=$C$12,ROW('Résumé des notes'!$G$1:$G$93)),ROW(17:17))),\"\")","v":0}]
[null,null,null,null,16,{"$f":"IFERROR(INDEX('Résumé des notes'!$F$1:$F$93,SMALL(IF('Résumé des notes'!$G$1:$G$93<=$C$12,ROW('Résumé des notes'!$G$1:$G$93)),ROW(18:18))),\"\")","v":0}]
[null,null,null,null,17,{"$f":"IFERROR(INDEX('Résumé des notes'!$F$1:$F$93,SMALL(IF('Résumé des notes'!$G$1:$G$93<=$C$12,ROW('Résumé des notes'!$G$1:$G$93)),ROW(19:19))),\"\")","v":0}]
[null,null,null,null,18,{"$f":"IFERROR(INDEX('Résumé des notes'!$F$1:$F$93,SMALL(IF('Résumé des notes'!$G$1:$G$93<=$C$12,ROW('Résumé des notes'!$G$1:$G$93)),ROW(20:20))),\"\")","v":0}]
[null,null,null,null,19,{"$f":"IFERROR(INDEX('Résumé des notes'!$F$1:$F$93,SMALL(IF('Résumé des notes'!$G$1:$G$93<=$C$12,ROW('Résumé des notes'!$G$1:$G$93)),ROW(21:21))),\"\")","v":0}]
[null,null,null,null,20,{"$f":"IFERROR(INDEX('Résumé des notes'!$F$1:$F$93,SMALL(IF('Résumé des notes'!$G$1:$G$93<=$C$12,ROW('Résumé des notes'!$G$1:$G$93)),ROW(22:22))),\"\")","v":0}]
[null,null,null,null,21,{"$f":"IFERROR(INDEX('Résumé des notes'!$F$1:$F$93,SMALL(IF('Résumé des notes'!$G$1:$G$93<=$C$12,ROW('Résumé des notes'!$G$1:$G$93)),ROW(23:23))),\"\")","v":0}]
[null,null,null,null,22,{"$f":"IFERROR(INDEX('Résumé des notes'!$F$1:$F$93,SMALL(IF('Résumé des notes'!$G$1:$G$93<=$C$12,ROW('Résumé des notes'!$G$1:$G$93)),ROW(24:24))),\"\")","v":0}]
[null,null,null,null,23,{"$f":"IFERROR(INDEX('Résumé des notes'!$F$1:$F$93,SMALL(IF('Résumé des notes'!$G$1:$G$93<=$C$12,ROW('Résumé des notes'!$G$1:$G$93)),ROW(25:25))),\"\")","v":0}]
[null,null,null,null,24,{"$f":"IFERROR(INDEX('Résumé des notes'!$F$1:$F$93,SMALL(IF('Résumé des notes'!$G$1:$G$93<=$C$12,ROW('Résumé des notes'!$G$1:$G$93)),ROW(26:26))),\"\")","v":0}]
[null,null,null,null,25,{"$f":"IFERROR(INDEX('Résumé des notes'!$F$1:$F$93,SMALL(IF('Résumé des notes'!$G$1:$G$93<=$C$12,ROW('Résumé des notes'!$G$1:$G$93)),ROW(27:27))),\"\")","v":0}]
[null,null,null,null,26,{"$f":"IFERROR(INDEX('Résumé des notes'!$F$1:$F$93,SMALL(IF('Résumé des notes'!$G$1:$G$93<=$C$12,ROW('Résumé des notes'!$G$1:$G$93)),ROW(28:28))),\"\")","v":0}]
[null,null,null,null,27,{"$f":"IFERROR(INDEX('Résumé des notes'!$F$1:$F$93,SMALL(IF('Résumé des notes'!$G$1:$G$93<=$C$12,ROW('Résumé des notes'!$G$1:$G$93)),ROW(29:29))),\"\")","v":0}]
[null,null,null,null,28,{"$f":"IFERROR(INDEX('Résumé des notes'!$F$1:$F$93,SMALL(IF('Résumé des notes'!$G$1:$G$93<=$C$12,ROW('Résumé des notes'!$G$1:$G$93)),ROW(30:30))),\"\")","v":0}]
[null,null,null,null,29,{"$f":"IFERROR(INDEX('Résumé des notes'!$F$1:$F$93,SMALL(IF('Résumé des notes'!$G$1:$G$93<=$C$12,ROW('Résumé des notes'!$G$1:$G$93)),ROW(31:31))),\"\")","v":0}]
[null,null,null,null,30,{"$f":"IFERROR(INDEX('Résumé des notes'!$F$1:$F$93,SMALL(IF('Résumé des notes'!$G$1:$G$93<=$C$12,ROW('Résumé des notes'!$G$1:$G$93)),ROW(32:32))),\"\")","v":0}]
[null,null,null,null,31,{"$f":"IFERROR(INDEX('Résumé des notes'!$F$1:$F$93,SMALL(IF('Résumé des notes'!$G$1:$G$93<=$C$12,ROW('Résumé des notes'!$G$1:$G$93)),ROW(33:33))),\"\")","v":0}]
[null,null,null,null,32,{"$f":"IFERROR(INDEX('Résumé des notes'!$F$1:$F$93,SMALL(IF('Résumé des notes'!$G$1:$G$93<=$C$12,ROW('Résumé des notes'!$G$1:$G$93)),ROW(34:34))),\"\")","v":0}]
[null,null,null,null,33,{"$f":"IFERROR(INDEX('Résumé des notes'!$F$1:$F$93,SMALL(IF('Résumé des notes'!$G$1:$G$93<=$C$12,ROW('Résumé des notes'!$G$1:$G$93)),ROW(35:35))),\"\")","v":0}]
[null,null,null,null,34,{"$f":"IFERROR(INDEX('Résumé des notes'!$F$1:$F$93,SMALL(IF('Résumé des notes'!$G$1:$G$93<=$C$12,ROW('Résumé des notes'!$G$1:$G$93)),ROW(36:36))),\"\")","v":0}]
[null,null,null,null,35,{"$f":"IFERROR(INDEX('Résumé des notes'!$F$1:$F$93,SMALL(IF('Résumé des notes'!$G$1:$G$93<=$C$12,ROW('Résumé des notes'!$G$1:$G$93)),ROW(37:37))),\"\")","v":0}]
[null,null,null,null,36,{"$f":"IFERROR(INDEX('Résumé des notes'!$F$1:$F$93,SMALL(IF('Résumé des notes'!$G$1:$G$93<=$C$12,ROW('Résumé des notes'!$G$1:$G$93)),ROW(38:38))),\"\")","v":0}]
[null,null,null,null,37,{"$f":"IFERROR(INDEX('Résumé des notes'!$F$1:$F$93,SMALL(IF('Résumé des notes'!$G$1:$G$93<=$C$12,ROW('Résumé des notes'!$G$1:$G$93)),ROW(39:39))),\"\")","v":0}]
[null,null,null,null,38,{"$f":"IFERROR(INDEX('Résumé des notes'!$F$1:$F$93,SMALL(IF('Résumé des notes'!$G$1:$G$93<=$C$12,ROW('Résumé des notes'!$G$1:$G$93)),ROW(40:40))),\"\")","v":0}]
[null,null,null,null,39,{"$f":"IFERROR(INDEX('Résumé des notes'!$F$1:$F$93,SMALL(IF('Résumé des notes'!$G$1:$G$93<=$C$12,ROW('Résumé des notes'!$G$1:$G$93)),ROW(41:41))),\"\")","v":0}]
[null,null,null,null,40,{"$f":"IFERROR(INDEX('Résumé des notes'!$F$1:$F$93,SMALL(IF('Résumé des notes'!$G$1:$G$93<=$C$12,ROW('Résumé des notes'!$G$1:$G$93)),ROW(42:42))),\"\")","v":0}]
[null,null,null,null,41,{"$f":"IFERROR(INDEX('Résumé des notes'!$F$1:$F$93,SMALL(IF('Résumé des notes'!$G$1:$G$93<=$C$12,ROW('Résumé des notes'!$G$1:$G$93)),ROW(43:43))),\"\")","v":0}]
[null,null,null,null,42,{"$f":"IFERROR(INDEX('Résumé des notes'!$F$1:$F$93,SMALL(IF('Résumé des notes'!$G$1:$G$93<=$C$12,ROW('Résumé des notes'!$G$1:$G$93)),ROW(44:44))),\"\")","v":0}]
[null,null,null,null,43,{"$f":"IFERROR(INDEX('Résumé des notes'!$F$1:$F$93,SMALL(IF('Résumé des notes'!$G$1:$G$93<=$C$12,ROW('Résumé des notes'!$G$1:$G$93)),ROW(45:45))),\"\")","v":0}]
[null,null,null,null,44,{"$f":"IFERROR(INDEX('Résumé des notes'!$F$1:$F$93,SMALL(IF('Résumé des notes'!$G$1:$G$93<=$C$12,ROW('Résumé des notes'!$G$1:$G$93)),ROW(46:46))),\"\")","v":0}]
[null,null,null,null,45,{"$f":"IFERROR(INDEX('Résumé des notes'!$F$1:$F$93,SMALL(IF('Résumé des notes'!$G$1:$G$93<=$C$12,ROW('Résumé des notes'!$G$1:$G$93)),ROW(47:47))),\"\")","v":0}]
[null,null,null,null,46,{"$f":"IFERROR(INDEX('Résumé des notes'!$F$1:$F$93,SMALL(IF('Résumé des notes'!$G$1:$G$93<=$C$12,ROW('Résumé des notes'!$G$1:$G$93)),ROW(48:48))),\"\")","v":0}]
[null,null,null,null,47,{"$f":"IFERROR(INDEX('Résumé des notes'!$F$1:$F$93,SMALL(IF('Résumé des notes'!$G$1:$G$93<=$C$12,ROW('Résumé des notes'!$G$1:$G$93)),ROW(49:49))),\"\")","v":0}]
[null,null,null,null,48,{"$f":"IFERROR(INDEX('Résumé des notes'!$F$1:$F$93,SMALL(IF('Résumé des notes'!$G$1:$G$93<=$C$12,ROW('Résumé des notes'!$G$1:$G$93)),ROW(50:50))),\"\")","v":0}]
[null,null,null,null,49,{"$f":"IFERROR(INDEX('Résumé des notes'!$F$1:$F$93,SMALL(IF('Résumé des notes'!$G$1:$G$93<=$C$12,ROW('Résumé des notes'!$G$1:$G$93)),ROW(51:51))),\"\")","v":0}]
[null,null,null,null,50,{"$f":"IFERROR(INDEX('Résumé des notes'!$F$1:$F$93,SMALL(IF('Résumé des notes'!$G$1:$G$93<=$C$12,ROW('Résumé des notes'!$G$1:$G$93)),ROW(52:52))),\"\")","v":0}]

{"sheet":"Bibliographie","index":10,"n_rows":29,"n_cols":4,"rows_kept":29,"cut":false,"hidden":false,"merged":[[1,2,1,3]]}
[]
[null,null,"Bibliographie"]
[null,null,1,"CDC (2017). PrEP Guidelines: CDC provider supplement"]
[null,null,2,"WHO (2016).Consolidated guidelines on the use of antiretroviral drugs for treating and preventing HIV infection"]
[null,null,3,"WHO (2017). Implementation tool for pre-exposure prophylaxis of HIV infection"]
[null,null,4,"OPTIONS (2019). Provider training package: Effective delivery of oral PrEP for adolescent girls and young women"]
[null,null,5,"OPTIONS (2019). PrEP-it tool"]
[null,null,6,"WHO (2016). Recommendations for a public health approach - Second edition"]
[null,null,7,"UNAIDS (2017). HIV Prevention 2020 Road Map"]
[null,null,8,"USAID (2005). Guidelines for managing HIV supply chain"]
[null,null,9,"WHO (2015). WHO good distribution practices for pharmaceutical products"]
[null,null,10,"WHO (2017). WHO implementation tool for pre-exposure prophylaxis of HIV infection"]
[null,null,11,"WHO (2019) What’s the 2+1+1? Event-driven oral pre-exposure prophylaxis to prevent HIV for men who have sex with men: Update to WHO’s recommendation on oral PrEP"]
[null,null,12,"WHO (2021) Updated recommendations on HIV prevention, infant diagnosis, antiretroviral initiation and monitoring"]
[null,null,13,"WHO (2020) HIV drug resistance surveillance in countries scaling up pre-exposure prophylaxis"]
[null,null,14,"WHO (2020) Consolidated HIV strategic information guidelines: driving impact through programme monitoring and management"]
[null,null,15,"PEPFAR (2020) Monitoring, Evaluation, and Reporting Indicator Reference Guide - MER 2.0 (Version 2.5)"]
[null,null,16,"WHO (2019) Prevention and control of sexually transmitted infections (STIs) in the era of oral pre-exposure prophylaxis (PrEP) for HIV"]
[null,null,17,"UNAIDS End Inequalities. End AIDS. Global AIDS Strategy 2021-2026"]
[null,null,18,"WHO (2018) Implementation tool for pre-exposure prophylaxis (PrEP) of HIV infection. Module 12: Adolescents and young adults"]
[null,null,19,"PrEP Learning Network (2019) Target setting for PrEP "]
[null,null,20,"UNAIDS (2019) Scorecards and Country Posters in the Global HIV Prevention Coalition"]
[null,null,21,"Joint United Nations Programme on HIV/AIDS. (2020). Maintaining and prioritizing HIV prevention services in the time of COVID-19."]
[null,null,22,"Joint United Nations Programme on HIV/AIDS. (2020). Condoms and lubricants in the time of COVID-19. Sustaining supplies and people-centred approaches to meet the need in low- and middle-income countries."]
[null,null,23,"Joint United Nations Programme on HIV/AIDS. (2020). UNAIDS highlights six critical actions to put gender equality at the centre of COVID-19 responses. "]
[null,null,24,"Joint United Nations Programme on HIV/AIDS. (2020). Strategic Considerations for Mitigating the Impact of COVID-19 on Key-Population-Focused HIV Programs."]
[null,null,25,"Joint United Nations Programme on HIV/AIDS. (2020). Preventing HIV and other STIs among women and girls using contraceptive services in contexts with high HIV incidence. "]
[null,null,26,"Joint United Nations Programme on HIV/AIDS. (2021). Going Online: A Budgeting and Programming Aid for Virtual HIV Interventions. "]
[null,null,27,"UNAIDS. (2019) Global HIV Prevention Coalition prevention scorecards and posters"]

{"sheet":"Acronymes","index":11,"n_rows":39,"n_cols":4,"rows_kept":39,"cut":false,"hidden":false,"merged":[[1,2,1,3]]}
[]
[null,null,"Acronymes"]
[]
[null,null,"AJF","Adolescentes et jeunes femmes "]
[null,null,"ARV","Médicaments antirétroviraux"]
[null,null,"AT","Plan d’assistance technique"]
[null,null,"AVD","Anneau vaginal de dapivirine"]
[null,null,"CDV","Conseil et dépistage du VIH"]
[null,null,"ClCr","Test de clairance de la créatine"]
[null,null,"CMMV","Circoncision masculine médicale volontaire"]
[null,null,"CV","Charge virale"]
[null,null,"EI","Événement indésirable"]
[null,null,"EIG","Événement indésirable grave "]
[null,null,"GTT","Groupe de travail technique "]
[null,null,"HSH","Hommes ayant rapports sexuels avec des hommes "]
[null,null,"ICP","Information et communication pédagogique"]
[null,null,"IST ","Infection sexuellement transmissible"]
[null,null,"LME","Liste des médicaments essentiels"]
[null,null,"OAEP","Outil d’auto-évaluation de la prévention"]
[null,null,"OMS","Organisation mondiale de la Santé "]
[null,null,"ONUSIDA","Programme commun des Nations unies sur le VIH/sida "]
[null,null,"PaE","Prophylaxie avant exposition"]
[null,null,"PC","Populations clés "]
[null,null,"PEPFAR","Plan d’urgence présidentiel de lutte contre le sida"]
[null,null,"PF","Planification familiale"]
[null,null,"PSN","Plan stratégique national"]
[null,null,"PVVIH","Personnes vivant avec le VIH"]
[null,null,"RH","Ressources humaines"]
[null,null,"S&E","Suivi et évaluation"]
[null,null,"SIGL","Système d’information et de gestion logistique"]
[null,null,"SIGS","Système d’information et de gestion de la santé"]
[null,null,"SP","Soins prénataux"]
[null,null,"SPN","Soins post-nataux"]
[null,null,"SSR","Santé sexuelle et reproductive"]
[null,null,"TAR","Traitement antirétroviral"]
[null,null,"TS","Travailleuse du sexe"]
[null,null,"USAID","United States Agency for International Development (Agence des États-Unis pour le développement international)"]
[null,null,"VHB","Virus de l’hépatite B "]
[null,null,"VHC","Virus de l’hépatite C "]